bitfinex/quotes_ETHUSD_20250126
["timestamp","ask_amount","ask_price","bid_price","bid_amount"]
[1737934279481,0.7859,3244.2,3243.7,3.08283]
[1737934279682,3.0,3244.5,3243.9,3.08261]
[1737934280019,3.08151,3245.2,3243.4,4.05146389]
[1737934280020,3.0,3244.9,3244.1,3.08248]
[1737934280332,3.0,3244.6,3244.1,3.08251]
[1737934280513,6.08176,3244.9,3244.2,0.308251]
[1737934280716,0.7859,3245.1,3244.4,3.08223]
[1737934280896,0.7859,3245.5,3244.3,0.03082211]
[1737934281098,3.0,3245.3,3244.7,3.08193]
[1737934281324,3.0,3245.3,3244.6,3.08204]
[1737934281482,3.0,3244.7,3244.1,0.7863]
[1737934281681,0.8215,3244.6,3244.2,0.386889]
[1737934281996,3.0,3244.3,3243.8,3.08279]
[1737934282314,3.0,3244.3,3243.6,3.08299]
[1737934283617,3.0,3244.3,3243.4,3.86948]
[1737934283817,3.55,3244.3,3242.9,0.794]
[1737934284018,3.0,3243.7,3243.1,3.08346]
[1737934284217,3.0,3243.8,3243.2,3.391656]
[1737934284390,0.55,3243.9,3243.2,3.391656]
[1737934284597,3.08281,3243.8,3243.2,0.308346]
[1737934284809,3.08281,3243.8,3243.1,3.08344]
[1737934284992,3.08244,3244.2,3242.9,0.794]
[1737934285191,6.08233,3244.3,3243.6,3.08296]
[1737934285784,0.55,3244.2,3243.1,3.08341]
[1737934285983,3.0,3243.7,3242.9,0.794]
[1737934286180,3.55,3243.9,3243.3,3.08325]
[1737934286387,3.0,3244.1,3243.4,3.699781]
[1737934286586,3.0,3244.3,3243.7,3.08286]
[1737934286824,3.90355,3244.6,3242.9,0.794]
[1737934286825,3.0,3243.9,3242.9,0.794]
[1737934287127,0.7615,3243.5,3242.4,0.57465654]
[1737934287295,0.7615,3243.5,3242.4,0.1673314]
[1737934287296,3.0,3242.8,3242.4,0.1673314]
[1737934287484,0.7615,3243.5,3242.4,0.1673314]
[1737934287686,3.0,3243.7,3243.2,3.08336]
[1737934287920,3.0,3243.7,3242.9,3.08357]
[1737934288090,3.0,3243.5,3242.9,3.08357]
[1737934288418,3.0,3243.5,3243.0,0.308357]
[1737934288621,3.0,3243.5,3243.0,3.391847]
[1737934288824,3.0,3243.5,3243.0,0.308357]
[1737934289199,3.08325,3243.4,3243.0,0.308357]
[1737934289403,3.0,3243.1,3242.5,3.84401]
[1737934289601,3.0,3242.8,3242.4,0.1673314]
[1737934289784,3.0,3243.0,3242.4,0.1673314]
[1737934289990,3.0,3243.0,3242.5,3.08402]
[1737934290191,3.7615,3243.6,3243.1,3.08342]
[1737934290419,6.84449,3243.6,3242.9,3.08364]
[1737934290686,3.84449,3243.6,3242.9,3.08365]
[1737934290924,3.84449,3243.6,3243.0,3.08355]
[1737934291425,3.84449,3243.6,3242.5,0.63355614]
[1737934291426,0.55,3243.5,3242.5,0.63355614]
[1737934291601,3.08358,3243.0,3242.4,3.2514514]
[1737934291801,0.55,3243.5,3242.4,3.2514514]
[1737934291802,6.08366,3242.9,3242.4,0.1673314]
[1737934292061,3.0,3243.0,3242.4,0.1673314]
[1737934292205,3.0,3243.0,3242.4,3.2514614]
[1737934292400,3.08356,3243.0,3242.4,3.88502954]
[1737934293122,3.08356,3243.0,3242.4,3.2514614]
[1737934293813,3.08356,3243.0,3242.4,3.2200868]
[1737934294131,6.08337,3243.2,3242.5,3.08403]
[1737934294132,0.55,3243.1,3242.5,3.08403]
[1737934294433,3.0,3243.0,3242.5,3.08403]
[1737934294629,0.55,3243.1,3242.4,0.1359568]
[1737934294954,3.0,3242.7,3242.4,0.1359568]
[1737934296067,3.0,3243.1,3242.5,3.08397]
[1737934296602,3.08321,3243.4,3242.4,0.1359568]
[1737934296603,3.0,3242.5,3242.4,0.1359568]
[1737934297020,3.0,3242.7,3242.4,0.1359568]
[1737934297267,3.55,3242.9,3242.4,0.1359568]
[1737934297565,3.0,3242.7,3242.4,0.1359568]
[1737934298205,3.55,3242.9,3242.4,0.1359568]
[1737934298869,3.0,3242.7,3242.4,0.1359568]
[1737934299048,6.63404,3242.5,3242.4,0.1359568]
[1737934299937,6.08404,3242.5,3242.4,0.1359568]
[1737934300140,6.63404,3242.5,3242.4,0.1359568]
[1737934302164,3.55,3242.5,3242.4,0.1359568]
[1737934302350,6.63404,3242.5,3242.4,0.1359568]
[1737934303275,3.55,3242.5,3242.4,0.1359568]
[1737934303860,6.63404,3242.5,3242.4,0.1359568]
[1737934304969,3.55,3242.5,3242.4,0.1359568]
[1737934305767,3.0,3242.5,3242.4,0.1359568]
[1737934306173,3.55,3242.5,3242.4,0.1359568]
[1737934306571,6.63404,3242.5,3242.4,0.1359568]
[1737934307505,3.55,3242.5,3242.4,0.1359568]
[1737934307798,6.63404,3242.5,3242.4,0.1359568]
[1737934309912,3.55,3242.5,3242.4,0.1359568]
[1737934310212,3.0,3242.5,3242.4,0.1359568]
[1737934312432,3.0,3242.5,3242.4,4.33320848]
[1737934313888,3.08338,3243.2,3242.5,3.08396]
[1737934314089,3.0,3243.3,3242.7,3.08382]
[1737934314308,3.55,3243.1,3242.5,3.08396]
[1737934315280,3.55,3243.1,3242.5,6.16792]
[1737934315560,3.55,3243.1,3242.5,6.16794]
[1737934315765,3.0,3243.3,3242.7,3.08382]
[1737934315982,0.55,3243.2,3242.7,3.08382]
[1737934317082,3.0,3243.3,3242.8,3.08369]
[1737934317590,0.7633,3243.7,3242.7,3.08378]
[1737934317737,0.55,3243.4,3242.9,3.08364]
[1737934317932,0.55,3243.4,3242.9,3.700372]
[1737934318140,3.0,3243.7,3243.2,3.87297]
[1737934318393,3.0,3243.9,3243.2,0.7896]
[1737934318603,3.0,3243.5,3242.9,0.7896]
[1737934318741,3.0,3242.9,3242.5,0.7896]
[1737934319245,3.63404,3242.5,3242.4,0.1359568]
[1737934319455,6.63404,3242.5,3242.4,0.1359568]
[1737934322081,7.43934,3242.5,3242.4,0.1359568]
[1737934322286,9.28934,3242.5,3242.4,6.8e-06]
[1737934322588,0.8053,3241.4,3240.1,0.8051]
[1737934322737,3.0,3240.2,3240.1,0.8051]
[1737934322938,3.0,3240.3,3240.1,0.8051]
[1737934323176,3.0,3240.8,3240.1,0.8051]
[1737934323385,6.89042,3241.4,3240.1,0.8051]
[1737934323584,3.0,3241.1,3240.1,0.8051]
[1737934323805,3.0,3241.3,3240.1,0.83595761]
[1737934324077,5.25,3242.2,3240.0,3.09005]
[1737934324078,0.7887,3242.5,3241.8,3.08461]
[1737934324263,0.7887,3243.0,3241.7,0.803]
[1737934324464,0.7887,3243.4,3241.7,0.803]
[1737934324640,3.0,3243.2,3241.8,0.0308397]
[1737934324847,0.7887,3243.4,3242.0,3.88751]
[1737934325048,3.0,3243.0,3242.2,3.08424]
[1737934325260,3.08328,3243.3,3242.4,3.08404]
[1737934325545,0.7887,3243.4,3242.7,0.7931]
[1737934325771,3.0,3243.1,3242.7,0.7931]
[1737934326743,3.55,3243.3,3242.7,0.7931]
[1737934326985,0.55,3243.0,3242.7,0.7931]
[1737934327344,3.55,3242.8,3242.3,0.764]
[1737934327652,3.55,3241.9,3241.5,0.764]
[1737934327978,3.08475,3241.8,3241.2,0.764]
[1737934328283,3.08475,3241.8,3241.2,1.148928]
[1737934328284,3.0848,3241.7,3241.2,1.148928]
[1737934328468,6.08473,3241.8,3241.2,1.148928]
[1737934328672,0.55,3241.7,3241.2,1.148928]
[1737934328985,0.55,3241.7,3241.2,4.234138]
[1737934329182,3.08426,3242.3,3241.4,3.08505]
[1737934329360,3.0,3242.2,3241.7,3.08479]
[1737934329723,3.0,3242.3,3241.7,3.08472]
[1737934329879,0.55,3242.2,3241.7,3.08472]
[1737934330255,3.0,3242.5,3241.9,3.08453]
[1737934330458,3.08375,3242.9,3241.8,0.7825]
[1737934330459,3.0,3242.8,3242.2,3.08431]
[1737934330659,3.0,3243.0,3242.2,3.08431]
[1737934330955,3.0,3242.8,3242.0,3.08444]
[1737934331155,3.08401,3242.6,3241.9,3.08459]
[1737934331561,0.55,3242.3,3241.5,0.308505]
[1737934331781,3.55,3242.0,3241.2,0.8005]
[1737934332091,3.814,3242.4,3241.5,3.08497]
[1737934332284,3.08439,3242.2,3241.5,3.08497]
[1737934332485,3.63447,3242.1,3241.3,3.08511]
[1737934332698,3.63447,3242.1,3241.5,3.08498]
[1737934333184,0.55,3242.1,3241.5,3.08498]
[1737934333360,0.55,3242.1,3241.6,3.08485]
[1737934334295,3.0,3242.6,3242.0,3.88501]
[1737934334500,3.0,3242.6,3242.1,3.08434]
[1737934334657,3.0,3242.6,3242.1,3.08441]
[1737934334858,3.08368,3242.9,3242.1,3.08433]
[1737934335091,3.0,3242.8,3242.3,3.08417]
[1737934335601,3.0,3243.0,3242.4,3.08409]
[1737934335754,6.08358,3243.0,3242.4,3.08409]
[1737934336099,3.0,3243.5,3242.8,3.08375]
[1737934336257,3.08283,3243.8,3242.8,0.8182]
[1737934336457,3.08223,3244.4,3242.2,3.08432]
[1737934336458,3.0,3244.3,3243.1,0.8182]
[1737934336687,6.08203,3244.7,3244.0,3.0826]
[1737934337001,3.08203,3244.7,3243.9,0.8182]
[1737934337234,3.0,3244.7,3243.9,0.8182]
[1737934337402,0.7583,3245.1,3244.4,3.08214]
[1737934337564,6.08138,3245.3,3244.6,3.08195]
[1737934337763,3.0,3245.3,3244.6,3.698359]
[1737934337988,3.0,3245.5,3244.7,3.08194]
[1737934338296,3.0,3245.3,3244.7,3.08194]
[1737934338797,3.08138,3245.3,3244.7,3.08194]
[1737934339470,0.55,3245.2,3244.7,3.08194]
[1737934339674,3.0,3245.6,3244.7,0.698227]
[1737934339899,3.0,3246.2,3245.0,0.8107]
[1737934340089,0.01656378,3246.3,3245.7,3.08097]
[1737934340297,0.01656378,3246.3,3245.0,3.8923]
[1737934340455,0.01656378,3246.3,3245.0,0.8107]
[1737934340456,3.08136,3245.4,3245.0,0.8107]
[1737934340772,3.0,3245.0,3244.6,0.8107]
[1737934341592,6.63142,3245.3,3244.6,0.8107]
[1737934341792,6.63142,3245.3,3244.6,3.89274]
[1737934341987,0.55,3245.2,3244.2,0.8107]
[1737934342203,3.0,3245.3,3243.5,3.08301]
[1737934342204,3.55,3244.4,3243.5,3.08301]
[1737934342433,0.55,3244.4,3243.3,0.8107]
[1737934342621,3.08281,3243.8,3243.3,0.8107]
[1737934343092,0.55,3243.9,3243.3,0.8107]
[1737934343298,0.55,3243.9,3243.4,3.08317]
[1737934343630,3.0,3243.8,3243.1,3.08346]
[1737934343929,3.55,3244.0,3243.3,3.0832]
[1737934344292,3.63262,3244.0,3243.2,3.08333]
[1737934344491,3.63262,3244.0,3243.3,3.08327]
[1737934344796,3.63253,3244.1,3243.3,3.08327]
[1737934345318,0.55,3244.1,3242.9,0.7627]
[1737934345626,3.0,3243.4,3242.9,0.7627]
[1737934345833,3.0,3244.0,3243.4,3.08317]
[1737934346137,0.55,3243.9,3243.3,3.08321]
[1737934346349,0.55,3243.9,3242.9,3.84634]
[1737934346489,0.8253,3244.2,3242.9,3.84634]
[1737934346490,3.55,3243.7,3242.9,3.84634]
[1737934346686,6.6329,3243.7,3242.9,3.84634]
[1737934347126,6.6329,3243.7,3243.0,3.08354]
[1737934347330,6.08274,3243.9,3243.2,3.08334]
[1737934347635,0.55,3243.8,3243.2,3.08334]
[1737934347932,0.55,3243.8,3243.0,3.08354]
[1737934348722,0.8253,3244.2,3242.9,0.7627]
[1737934348912,3.0,3243.1,3242.5,0.8107]
[1737934349430,3.08344,3243.2,3242.1,0.8107]
[1737934349431,6.0839,3242.7,3242.1,0.8107]
[1737934349633,3.0,3242.5,3242.1,0.8107]
[1737934349948,3.08404,3242.5,3241.8,0.8107]
[1737934350153,3.08404,3242.5,3241.8,3.89539]
[1737934350154,3.0,3242.4,3241.8,3.89539]
[1737934350315,3.08404,3242.5,3241.8,3.89539]
[1737934350316,3.0,3242.2,3241.8,0.8107]
[1737934350844,3.08469,3241.9,3241.4,0.8107]
[1737934351412,0.55,3241.7,3241.0,3.08538]
[1737934352285,3.6348,3241.7,3240.8,3.08564]
[1737934352463,3.08525,3241.3,3240.6,3.83683]
[1737934352748,3.08528,3241.2,3240.6,3.83683]
[1737934353045,3.0,3241.4,3240.7,3.08574]
[1737934353253,3.0,3241.8,3240.6,1.47413693]
[1737934353395,3.0,3241.8,3240.6,0.751]
[1737934353596,3.0,3241.8,3241.1,3.08535]
[1737934353597,6.08473,3241.8,3241.1,3.08535]
[1737934353847,6.08473,3241.8,3240.9,3.08555]
[1737934354144,6.08473,3241.8,3241.2,3.08526]
[1737934354348,6.08473,3241.8,3240.9,3.08555]
[1737934354552,0.55,3241.7,3240.9,3.08555]
[1737934354853,3.08496,3241.6,3240.9,3.08555]
[1737934355046,0.55,3241.7,3240.9,3.08555]
[1737934355047,3.0,3241.5,3240.9,3.08555]
[1737934355197,0.55,3241.7,3240.9,3.08555]
[1737934355198,3.55,3241.7,3241.1,3.08536]
[1737934355394,3.55,3241.7,3241.2,3.08523]
[1737934355395,3.0,3241.7,3241.2,3.08523]
[1737934355813,0.55,3241.8,3240.7,3.08568]
[1737934356157,0.8021,3241.9,3240.8,3.08557]
[1737934356158,3.55,3241.5,3240.8,3.08557]
[1737934356357,3.63501,3241.5,3240.8,3.08557]
[1737934356546,3.63501,3241.5,3240.8,3.08558]
[1737934356749,3.63501,3241.5,3240.6,3.83678]
[1737934356952,6.08524,3241.3,3240.6,0.751]
[1737934357115,3.08528,3241.2,3240.6,0.751]
[1737934357321,3.0,3241.1,3240.6,0.751]
[1737934358119,0.7802,3241.1,3240.2,3.08621]
[1737934358347,3.08559,3240.9,3240.1,0.7768]
[1737934358554,3.0,3240.7,3240.2,3.08621]
[1737934358932,0.55,3240.8,3240.1,3.08632]
[1737934359153,6.08575,3240.7,3240.0,0.0037]
[1737934359334,3.08593,3240.6,3240.0,0.0037]
[1737934359985,3.08609,3240.4,3240.0,0.0037]
[1737934360192,3.0,3240.1,3240.0,0.0037]
[1737934360332,3.0,3240.1,3240.0,3.09011]
[1737934360681,3.0,3241.1,3240.5,3.86266]
[1737934361182,3.0,3240.9,3240.5,0.7768]
[1737934361334,3.0,3240.6,3240.1,3.86312]
[1737934362140,3.08565,3240.9,3240.2,3.08622]
[1737934362492,3.08565,3240.9,3240.0,3.0901]
[1737934362493,3.0,3241.5,3241.0,3.08545]
[1737934362781,6.08504,3241.5,3240.9,0.7768]
[1737934362951,6.08504,3241.5,3240.9,3.86235]
[1737934363535,3.08473,3241.8,3240.9,0.7768]
[1737934363778,6.08486,3241.7,3241.0,3.08546]
[1737934364086,6.08486,3241.7,3241.2,3.08524]
[1737934364087,3.0,3241.7,3241.2,3.08524]
[1737934364681,3.0,3241.8,3241.3,3.08512]
[1737934365189,3.0,3242.0,3241.5,3.08498]
[1737934365351,3.0,3242.4,3241.7,3.0848]
[1737934365560,3.0,3242.7,3242.0,3.08442]
[1737934365738,6.08387,3242.7,3242.0,3.08442]
[1737934366082,3.0,3241.9,3241.6,0.7768]
[1737934366448,6.08421,3242.4,3241.6,3.86167]
[1737934366868,0.7802,3242.8,3241.7,0.03084528]
[1737934367068,3.0,3243.1,3242.4,3.08404]
[1737934367249,3.0,3243.1,3241.7,0.03084528]
[1737934367250,3.0,3242.9,3242.2,3.08432]
[1737934367584,3.08385,3242.7,3242.0,3.08449]
[1737934367941,0.55,3243.1,3241.8,3.08468]
[1737934368134,3.0,3242.1,3241.6,0.7768]
[1737934368587,3.08433,3242.2,3241.6,3.86165]
[1737934368736,3.0,3242.1,3241.6,3.86165]
[1737934368936,0.7811,3242.4,3241.6,3.86165]
[1737934368937,6.86527,3242.4,3241.6,3.86165]
[1737934369132,3.7811,3242.4,3241.6,3.86165]
[1737934369347,3.0,3242.2,3241.6,3.86165]
[1737934370041,3.0,3242.2,3241.7,3.08478]
[1737934370363,3.86493,3242.8,3242.2,3.08431]
[1737934370569,3.0,3242.6,3242.0,3.08445]
[1737934370769,0.7811,3242.8,3242.0,3.08445]
[1737934370987,3.08395,3242.6,3242.0,3.08445]
[1737934371153,3.0,3242.7,3242.1,3.0844]
[1737934371343,3.0,3242.9,3242.1,0.03084213]
[1737934371685,3.0,3242.9,3242.1,3.11522213]
[1737934371990,3.0,3242.9,3242.3,3.08422]
[1737934372132,3.0,3242.9,3242.4,3.08407]
[1737934372339,3.0,3243.0,3242.5,3.08402]
[1737934372887,6.08358,3243.0,3242.3,3.83962]
[1737934373087,3.08406,3242.5,3241.9,0.7554]
[1737934373389,3.0,3242.2,3241.5,3.8403]
[1737934373685,3.08458,3242.0,3241.5,0.7554]
[1737934374189,3.0,3241.9,3241.5,3.84038]
[1737934374496,3.0,3242.1,3241.5,4.532933]
[1737934374672,3.0,3242.1,3241.6,3.08488]
[1737934374838,3.0,3242.1,3241.5,0.7554]
[1737934375539,6.08442,3242.1,3241.5,3.84036]
[1737934375943,3.0,3242.1,3241.6,3.08486]
[1737934376373,3.0,3242.3,3241.8,3.08469]
[1737934376586,3.08441,3242.2,3241.5,3.84035]
[1737934376785,6.08442,3242.1,3241.5,3.84035]
[1737934377084,3.0,3242.1,3241.5,3.84035]
[1737934377642,6.08445,3242.1,3241.5,3.84035]
[1737934377839,3.0,3242.1,3241.5,3.84035]
[1737934378261,3.0,3241.7,3241.1,3.8581]
[1737934378586,3.0,3241.7,3241.1,0.7728]
[1737934378794,6.08469,3241.9,3241.3,3.08508]
[1737934378997,3.0,3241.9,3241.1,3.85814]
[1737934379201,3.0,3241.5,3240.9,3.08554]
[1737934379403,3.0,3241.5,3241.0,3.08545]
[1737934379702,3.0,3241.9,3241.3,3.08516]
[1737934379899,3.0,3241.9,3241.4,3.08506]
[1737934380264,3.0,3242.2,3241.7,3.0848]
[1737934380502,3.0,3241.7,3241.1,0.7728]
[1737934380705,3.0,3241.9,3241.3,3.08517]
[1737934381000,3.0,3242.1,3241.6,3.08485]
[1737934381204,6.08443,3242.1,3241.5,3.08496]
[1737934381701,6.08432,3242.3,3241.2,0.03084652]
[1737934381878,3.0,3242.3,3241.8,3.08467]
[1737934382390,3.0,3242.7,3242.2,3.08432]
[1737934382901,0.822,3243.4,3242.7,3.08376]
[1737934383087,3.0,3243.2,3242.7,3.08376]
[1737934383304,3.0,3243.4,3242.7,3.08384]
[1737934383610,0.822,3244.6,3243.8,3.08271]
[1737934383820,0.822,3244.6,3243.8,3.06614622]
[1737934383821,3.0,3244.4,3243.8,3.06614622]
[1737934383970,6.9041,3244.6,3244.0,3.08259]
[1737934384164,3.0,3244.4,3243.8,3.06614622]
[1737934384419,3.0,3244.4,3243.5,0.7728]
[1737934384578,3.0,3244.4,3242.9,3.85638]
[1737934384579,3.0,3243.4,3242.9,3.85638]
[1737934384907,3.0,3243.6,3243.0,3.08354]
[1737934385113,3.0,3243.6,3242.9,3.85645]
[1737934385114,3.08306,3243.6,3242.9,3.85645]
[1737934385314,3.8266,3244.1,3243.0,0.385634]
[1737934385482,3.0,3243.5,3242.9,0.7728]
[1737934385681,3.0,3243.3,3242.9,0.7728]
[1737934385882,0.8266,3244.1,3242.9,0.7728]
[1737934386085,3.0,3242.9,3242.5,0.8304]
[1737934386720,3.90871,3244.6,3243.9,3.08261]
[1737934386898,3.0,3244.8,3243.3,0.8304]
[1737934387215,3.0,3244.8,3244.3,3.08232]
[1737934387415,0.8266,3245.1,3244.4,3.08221]
[1737934387584,0.8266,3245.1,3244.1,0.8117]
[1737934387585,0.31969167,3245.3,3244.5,3.08208]
[1737934387989,3.31969167,3245.3,3244.8,3.08181]
[1737934388294,0.31969167,3245.3,3244.2,0.03081911]
[1737934388464,0.31969167,3245.3,3244.9,3.08168]
[1737934389167,3.0,3245.4,3244.9,3.08168]
[1737934389364,0.31975073,3246.1,3244.9,3.89338]
[1737934389566,3.0,3245.8,3245.0,3.08166]
[1737934389765,3.0,3245.8,3245.2,3.08146]
[1737934390075,3.0,3245.8,3245.0,3.08166]
[1737934390231,3.08106,3245.7,3245.0,3.08166]
[1737934390398,3.0,3245.8,3245.1,3.08148]
[1737934390600,3.0,3246.0,3245.2,0.03081199]
[1737934390899,0.31975073,3246.1,3245.6,3.08107]
[1737934391192,0.31975073,3246.1,3245.4,3.08128]
[1737934391402,0.31975073,3246.1,3245.4,6.16249]
[1737934391741,0.31975073,3246.1,3245.4,3.08121]
[1737934391941,3.0,3246.9,3246.5,3.08021]
[1737934392123,3.0,3247.1,3246.6,3.08013]
[1737934392292,6.07933,3247.5,3246.7,3.08001]
[1737934392493,3.07948,3247.3,3246.5,3.90521]
[1737934392704,3.0,3247.4,3246.3,3.08041]
[1737934392948,3.0,3246.8,3246.1,3.08061]
[1737934393126,3.07995,3246.8,3246.1,3.0806]
[1737934393696,3.0,3246.1,3245.6,0.7979]
[1737934393917,6.08043,3246.3,3245.6,0.7979]
[1737934394103,3.6306,3246.2,3245.6,0.7979]
[1737934394338,3.0,3246.0,3245.6,0.7979]
[1737934394904,3.55,3246.3,3245.7,3.08098]
[1737934395099,3.63044,3246.3,3245.7,3.08098]
[1737934395406,3.0,3246.5,3245.6,0.7979]
[1737934395407,6.08025,3246.5,3245.8,3.08088]
[1737934395704,0.55,3246.6,3245.8,3.08088]
[1737934395918,0.55,3246.6,3246.1,3.08053]
[1737934396518,3.0,3246.5,3245.9,3.08079]
[1737934397117,3.55,3246.7,3246.0,3.08069]
[1737934397324,3.55,3246.7,3246.1,3.08059]
[1737934397742,3.0,3246.9,3246.3,3.08042]
[1737934397923,3.08006,3246.7,3246.1,3.08059]
[1737934398255,3.0,3246.5,3245.9,3.08079]
[1737934398460,6.08025,3246.5,3245.9,3.08079]
[1737934398636,0.55,3246.6,3245.9,3.08079]
[1737934398960,3.0,3246.9,3246.3,3.08036]
[1737934399528,3.0,3246.7,3246.1,3.08061]
[1737934400049,3.0,3246.5,3245.9,3.0808]
[1737934400247,6.08027,3246.5,3245.7,3.08097]
[1737934400450,3.0,3246.5,3245.7,3.08097]
[1737934400659,6.63006,3246.7,3246.0,3.08067]
[1737934401159,3.0,3246.5,3245.9,3.0808]
[1737934401981,3.0,3246.5,3246.0,3.08069]
[1737934402574,3.0,3247.2,3246.7,3.08002]
[1737934402785,0.55,3247.3,3246.7,3.07995]
[1737934402970,3.0,3247.2,3246.7,3.07995]
[1737934403139,3.0,3247.2,3246.4,3.08027]
[1737934403140,3.07957,3247.2,3246.6,3.08012]
[1737934403582,6.07942,3247.4,3246.8,3.07989]
[1737934403971,3.0,3247.5,3246.8,3.07989]
[1737934404287,3.0,3247.3,3246.5,3.08016]
[1737934404490,3.0,3246.8,3246.2,3.8795]
[1737934404987,6.07997,3246.8,3246.2,0.799]
[1737934405185,3.0,3246.3,3245.8,3.08087]
[1737934405382,3.0,3246.4,3245.9,3.0808]
[1737934405542,3.0,3246.6,3245.9,0.696067]
[1737934405746,3.55,3247.0,3245.9,0.696067]
[1737934405984,6.07984,3247.0,3246.2,3.08045]
[1737934406157,3.07986,3246.9,3246.2,3.08045]
[1737934406357,0.7898,3247.1,3245.9,0.696067]
[1737934406571,3.0,3246.5,3245.9,3.08079]
[1737934406774,6.08024,3246.5,3245.9,3.08079]
[1737934407783,3.0,3246.0,3245.7,0.799]
[1737934407986,3.0,3246.3,3244.6,0.8093]
[1737934408172,3.0,3245.5,3244.9,3.08169]
[1737934408378,6.08121,3245.5,3244.9,3.08169]
[1737934408968,3.0,3245.5,3244.9,3.08169]
[1737934409164,3.0,3245.5,3245.1,3.08156]
[1737934409364,3.0,3245.3,3244.7,3.471045]
[1737934409575,0.7636,3245.6,3244.8,0.4280345]
[1737934409770,3.0,3245.4,3244.8,3.5098745]
[1737934409969,3.0,3245.5,3244.8,3.5098745]
[1737934411187,3.08133,3245.4,3244.8,3.5098745]
[1737934411389,3.08133,3245.4,3244.8,0.4280345]
[1737934411553,3.08133,3245.4,3244.9,0.35099445]
[1737934411753,3.0,3245.7,3245.6,3.08109]
[1737934411995,3.0,3246.1,3245.5,0.7654]
[1737934412158,3.0,3246.6,3246.0,3.08064]
[1737934412508,3.0,3246.4,3246.0,3.08064]
[1737934412856,3.0,3246.6,3246.2,3.08049]
[1737934413163,3.0,3246.8,3246.2,3.08046]
[1737934413354,3.0,3246.8,3246.2,3.90256]
[1737934413553,3.0,3246.8,3246.3,3.0804]
[1737934414013,3.0,3247.2,3246.6,3.08012]
[1737934414292,3.0,3248.0,3247.2,3.07948]
[1737934414457,3.0,3248.0,3247.4,3.07938]
[1737934414657,3.0,3248.5,3247.2,3.07951]
[1737934414957,3.0,3248.5,3246.7,1.130112]
[1737934414958,3.0,3247.3,3246.7,1.130112]
[1737934415187,6.07935,3247.5,3246.7,0.8221]
[1737934415555,3.0,3247.6,3246.9,3.07976]
[1737934415757,3.0,3248.0,3246.8,3.11074319]
[1737934415958,3.0,3248.1,3247.3,3.07947]
[1737934416304,3.0,3248.1,3247.5,3.07924]
[1737934416510,0.7656,3248.5,3247.5,3.695091]
[1737934416817,3.0,3248.9,3247.7,3.0791]
[1737934416986,3.0,3249.0,3248.3,3.07845]
[1737934417305,3.0,3248.8,3248.4,0.7864]
[1737934417507,6.07779,3249.1,3248.4,3.86483]
[1737934417803,3.07778,3249.1,3248.4,3.86474]
[1737934418003,0.7656,3249.6,3248.4,3.86474]
[1737934418205,3.0,3248.8,3248.0,0.7864]
[1737934418392,6.07798,3248.9,3248.1,3.07863]
[1737934418592,6.07798,3248.9,3248.2,3.465093]
[1737934419017,3.0,3249.0,3248.3,3.07846]
[1737934419218,3.0,3249.0,3248.2,3.49590321]
[1737934419368,3.0,3249.0,3248.4,3.07835]
[1737934419572,3.07741,3249.5,3248.7,3.07808]
[1737934419868,3.0,3249.4,3248.7,3.69679591]
[1737934420075,3.0,3249.1,3248.7,0.61871591]
[1737934420315,3.0,3249.1,3248.5,3.0783]
[1737934420485,3.0,3248.9,3248.3,0.7864]
[1737934420682,6.07805,3248.9,3248.3,0.7864]
[1737934420994,3.0,3249.0,3248.3,3.86486]
[1737934421195,3.07787,3249.0,3248.4,0.4251363]
[1737934421415,3.0,3249.2,3248.5,3.07825]
[1737934421570,3.0,3249.2,3248.6,0.03077751]
[1737934421905,3.0,3249.5,3248.7,3.07815]
[1737934422297,3.07682,3250.2,3248.4,0.4251363]
[1737934422298,6.0772,3249.7,3249.0,3.07785]
[1737934422498,6.0772,3249.7,3249.1,0.390095]
[1737934423470,3.07743,3249.5,3248.9,3.90105]
[1737934423717,3.07743,3249.5,3248.9,0.8231]
[1737934423913,3.0,3249.0,3248.5,0.8231]
[1737934424675,0.8072,3249.6,3248.6,3.07824]
[1737934424913,3.07738,3249.6,3248.7,3.10891416]
[1737934425219,3.07759,3249.3,3248.8,0.31089142]
[1737934425527,3.07741,3249.5,3248.5,3.90143]
[1737934425528,0.754,3249.9,3248.5,0.8231]
[1737934425819,3.07804,3248.9,3248.5,0.8231]
[1737934426027,3.07822,3248.7,3248.5,0.8231]
[1737934426323,3.07824,3248.6,3248.2,1.143203]
[1737934426531,3.07853,3248.3,3247.8,0.7567]
[1737934426819,3.0,3248.0,3247.8,0.7567]
[1737934427636,6.07886,3248.0,3247.8,0.7567]
[1737934427823,3.0,3248.0,3247.8,0.7567]
[1737934428379,6.07891,3247.9,3247.8,0.7567]
[1737934428915,3.0791,3247.7,3247.4,0.7747]
[1737934429123,3.0,3247.6,3247.4,0.7747]
[1737934429494,3.0,3247.8,3247.4,0.7747]